lending/lending_fUSD_20251107
["ID","MTS","AMOUNT","RATE_DAILY","PERIOD"]
[393349443,1762504249142,-1263.677778,0.00021814,7]
[393349444,1762504249152,-1263.677778,0.00021814,7]
[393349445,1762504249161,-671.2460594,0.00021814,2]
[393349446,1762504249172,-1851.8613287,0.00021814,2]
[393349447,1762504249181,-108227.2195129,0.00021814,2]
[393349448,1762504249191,-289.137584,0.0002182,7]
[393349449,1762504249201,-255.837939,0.0002182,7]
[393349450,1762504249213,-151.0,0.0002182,7]
[393349451,1762504249222,-151.0,0.0002182,7]
[393349452,1762504249232,-151.0,0.0002182,7]
[393349453,1762504249241,-151.0,0.0002182,7]
[393349454,1762504249251,-151.0,0.0002182,7]
[393349455,1762504249260,-151.0,0.0002182,7]
[393349456,1762504249270,-161.013308,0.0002182,7]
[393349457,1762504249279,-161.013308,0.0002182,7]
[393349458,1762504249289,-161.013308,0.0002182,7]
[393349459,1762504249298,-161.013308,0.0002182,7]
[393349460,1762504249308,-550.6,0.00021865,2]
[393349461,1762504249318,-968.0,0.00021883,2]
[393349462,1762504249328,-477.99034883,0.000219,7]
[393349463,1762504249338,-500.0,0.00021917,2]
[393349464,1762504249347,-500.0,0.00021917,2]
[393349465,1762504249357,-500.0,0.00021917,2]
[393349466,1762504249368,-500.0,0.00021917,2]
[393349467,1762504249377,-500.0,0.00021917,2]
[393349468,1762504249388,-500.0,0.00021917,2]
[393349469,1762504249399,-500.0,0.00021917,2]
[393349470,1762504249409,-500.0,0.00021917,2]
[393349471,1762504249419,-500.0,0.00021917,2]
[393349472,1762504249428,-500.0,0.00021917,2]
[393349473,1762504249437,-500.0,0.00021917,2]
[393349474,1762504249446,-500.0,0.00021917,2]
[393349475,1762504249457,-500.0,0.00021917,2]
[393349476,1762504249467,-500.0,0.00021917,2]
[393349477,1762504249478,-500.0,0.00021917,2]
[393349478,1762504249490,-500.0,0.00021917,2]
[393349479,1762504249501,-500.0,0.00021917,2]
[393349480,1762504249512,-500.0,0.00021917,2]
[393349481,1762504249522,-500.0,0.00021917,2]
[393349482,1762504249534,-500.0,0.00021917,2]
[393349483,1762504249544,-500.0,0.00021917,2]
[393349484,1762504249555,-500.0,0.00021917,2]
[393349485,1762504249566,-609.1277229,0.00021917,2]
[393349486,1762504249575,-5000.0,0.00021918,2]
[393349487,1762504249623,-500.0,0.00021918,2]
[393349488,1762504249633,-150.0,0.00021918,2]
[393349489,1762504249643,-19406.69,0.00022,7]
[393349490,1762504249654,-117767.25402134,0.00022,4]
[393349491,1762504249663,-4107.82408963,0.00022,2]
[393349492,1762504249672,-788.15321484,0.00022,7]
[393349493,1762504249683,-160.97,0.00022,2]
[393349494,1762504249693,-1630.140865,0.00022,7]
[393349495,1762504249702,-151.0,0.00022,7]
[393349496,1762504249711,-1630.140865,0.00022,7]
[393349497,1762504249720,-151.0,0.00022,7]
[393349498,1762504249731,-1630.140865,0.00022,7]
[393349499,1762504249741,-151.0,0.00022,7]
[393349500,1762504249751,-368.375632,0.00022,7]
[393349501,1762504249761,-1630.140859,0.00022,7]
[393349502,1762504249770,-368.375632,0.00022,7]
[393349503,1762504249780,-368.375632,0.00022,7]
[393349504,1762504249790,-368.375631,0.00022,7]
[393349505,1762504249799,-1263.677778,0.00022,7]
[393349506,1762504249808,-1263.677778,0.00022,7]
[393349507,1762504249817,-1263.677778,0.00022,7]
[393349508,1762504249828,-1263.677787,0.00022,7]
[393349509,1762504249838,-216.7,0.00022,2]
[393349510,1762504249848,-437.69673721,0.00022055,2]
[393349511,1762504249856,-489.8069685,0.000221,2]
[393349512,1762504249865,-238.0016999,0.0002211,2]
[393349513,1762504249875,-151.0,0.00022121,7]
[393349514,1762504249883,-151.0,0.00022121,7]
[393349515,1762504249892,-151.0,0.00022121,7]
[393349516,1762504249901,-290.137231,0.00022121,7]
[393349517,1762504249910,-151.0,0.00022121,7]
[393349518,1762504249919,-152.07,0.00022125,2]
[393349519,1762504249928,-186.12,0.00022276,2]
[393349520,1762504249938,-1000.0,0.000223,2]
[393349521,1762504249947,-35159.08642138,0.000225,2]
[393349522,1762504249956,-460.4963854,0.00022501,2]
[393349523,1762504249965,-1205.0,0.00022549,2]
[393349524,1762504249974,-293.33,0.00022593,2]
[393349525,1762504249984,-517.95567933,0.0002271,2]
[393349526,1762504249994,-19202.56589629,0.000229,2]
[393349527,1762504250003,-628.25562574,0.00023,7]
[393349528,1762504250012,-435.52331328,0.00023,2]
[393349529,1762504250022,-997.68735176,0.00023,2]
[393349530,1762504250031,-400.0,0.00023,2]
[393349531,1762504250040,-151.0,0.00023017,7]
[393349532,1762504250049,-151.0,0.00023017,7]
[393349533,1762504250058,-165.327163,0.00023017,7]
[393349534,1762504250067,-151.0,0.00023017,7]
[393349535,1762504250077,-151.0,0.00023017,7]
[393349536,1762504250087,-151.0,0.00023017,7]
[393349537,1762504250096,-151.0,0.00023017,7]
[393349538,1762504250105,-151.0,0.00023017,7]
[393349539,1762504250115,-159.453846,0.00023017,7]
[393349540,1762504250125,-161.013308,0.00023017,7]
[393349541,1762504250134,-161.013308,0.00023017,7]
[393349542,1762504250145,-161.013308,0.00023017,7]
[393349543,1762504250154,-161.013308,0.00023017,7]
[393349544,1762504250163,-286.243306,0.00023017,7]
[393349545,1762504250172,-228.388686,0.00023017,7]
[393349546,1762504250182,-2560.26705146,0.000231,2]
[393349547,1762504250192,-1152.0,0.00023128,2]
[393349548,1762504250201,-1152.0,0.00023128,2]
[393349549,1762504250210,-546.88431357,0.00023173,2]
[393349550,1762504250219,-51657.89405864,0.000232,2]
[393349551,1762504250228,-5066.95449349,0.00023233,2]
[393349552,1762504250238,-11563.9880708,0.00023333,7]
[393349553,1762504250247,-200.0,0.000235,2]
[393349554,1762504250257,-293.33,0.00023576,2]
[393349555,1762504250266,-4609.0,0.00023594,2]
[393349556,1762504250275,-19406.69,0.000236,7]
[393349557,1762504250284,-2000.0,0.000238,2]
[393349558,1762504250295,-671.2460594,0.00023847,2]
[393349559,1762504250304,-1851.8613287,0.00023847,2]
[393349560,1762504250313,-108227.2195129,0.00023847,2]
[393349561,1762504250322,-151.0,0.00023847,7]
[393349562,1762504250331,-151.0,0.00023847,7]
[393349563,1762504250341,-151.0,0.00023847,7]
[393349564,1762504250350,-151.0,0.00023847,7]
[393349565,1762504250359,-151.0,0.00023847,7]
[393349566,1762504250368,-151.0,0.00023847,7]
[393349567,1762504250377,-151.0,0.00023847,7]
[393349568,1762504250386,-1000.0,0.00023905,2]
[393349569,1762504250396,-1010.66587826,0.00024,2]
[393349570,1762504250405,-1029.79555358,0.00024,14]
[393349571,1762504250414,-3600.0,0.00024,2]
[393349572,1762504250423,-16048.0046882,0.00024,2]
[393349573,1762504250432,-500.0,0.00024026,2]
[393349574,1762504250441,-500.0,0.00024195,2]
[393349575,1762504250451,-417.56704257,0.0002421,2]
[393349576,1762504250461,-3658.97332196,0.0002421,2]
[393349577,1762504250470,-2132.07,0.00024379,2]
[393349578,1762504250479,-4727.782587,0.00024379,7]
[393349579,1762504250489,-4727.782587,0.00024379,7]
[393349580,1762504250498,-550.6,0.00024432,2]
[393349581,1762504250508,-162.14577741,0.0002455,15]
[393349582,1762504250521,-293.33,0.00024558,2]
[393349583,1762504250530,-5066.95449349,0.00024566,2]
[393349584,1762504250540,-591.38327274,0.0002465,2]
[393349585,1762504250549,-165.80535779,0.0002465,2]
[393349586,1762504250558,-1000.0,0.00024658,2]
[393349587,1762504250567,-1171.1,0.00024658,2]
[393349588,1762504250576,-151.0,0.00024658,7]
[393349589,1762504250584,-151.0,0.00024658,7]
[393349590,1762504250594,-151.0,0.00024658,7]
[393349591,1762504250604,-151.0,0.00024658,7]
[393349592,1762504250616,-151.0,0.00024658,7]
[393349593,1762504250626,-151.0,0.00024658,7]
[393349594,1762504250635,-151.0,0.00024658,7]
[393349595,1762504250645,-151.000013,0.00024658,7]
[393349596,1762504250655,-500.0,0.00024658,2]
[393349597,1762504250664,-150.0,0.00024773,2]
[393349598,1762504250673,-500.0,0.00024795,2]
[393349599,1762504250685,-477.99034883,0.000248,3]
[393349600,1762504250695,-151.0,0.000248,7]
[393349601,1762504250704,-245.758129,0.000248,7]
[393349602,1762504250714,-170.037551,0.000248,7]
[393349603,1762504250723,-151.0,0.000248,7]
[393349604,1762504250733,-151.0,0.000248,7]
[393349605,1762504250743,-151.0,0.000248,7]
[393349606,1762504250752,-151.0,0.000248,7]
[393349607,1762504250761,-161.013308,0.000248,7]
[393349608,1762504250770,-161.013308,0.000248,7]
[393349609,1762504250779,-161.013308,0.000248,7]
[393349610,1762504250788,-161.013303,0.000248,7]
[393349611,1762504250797,-151.0,0.000248,7]
[393349612,1762504250806,-151.0,0.000248,7]
[393349613,1762504250815,-151.0,0.000248,7]
[393349614,1762504250824,-151.0,0.000248,7]
[393349615,1762504250833,-151.0,0.000248,7]
[393349616,1762504250843,-151.0,0.000248,7]
[393349617,1762504250851,-158.778431,0.000248,7]
[393349618,1762504250861,-4727.782587,0.000248,7]
[393349619,1762504250870,-4727.782587,0.000248,7]
[393349620,1762504250879,-4727.78258,0.000248,7]
[393349621,1762504250888,-605997.209071,0.000248,3]
[393349622,1762504250898,-165.39845766,0.000248,30]
[393349623,1762504250907,-460.4963854,0.00024801,2]
[393349624,1762504250916,-151.0,0.00024842,2]
[393349625,1762504250925,-156.587,0.00024842,2]
[393349626,1762504250934,-157.72711831,0.00024842,2]
[393349627,1762504250943,-89393.1241321,0.000249,3]
[393349628,1762504250953,-356.27494664,0.00024932,2]
[393349629,1762504250963,-216.7,0.0002497,2]
[393349630,1762504250971,-601.49527831,0.00025,2]
[393349631,1762504250980,-205.06591834,0.00025,2]
[393349632,1762504250989,-1763.69844896,0.00025,2]
[393349633,1762504250999,-17069.30099595,0.00025,2]
[393349634,1762504251009,-2741.27148346,0.00025,3]
[393349635,1762504251018,-360.0,0.00025,2]
[393349636,1762504251028,-3782.63999888,0.00025,2]
[393349637,1762504251037,-216.9027013,0.00025,21]
[393349638,1762504251046,-3007.4294775,0.00025,2]
[393349639,1762504251055,-12049.96528955,0.00025,2]
[393349640,1762504251064,-157.45979504,0.00025,7]
[393349641,1762504251073,-1051.41139429,0.00025,2]
[393349642,1762504251083,-165.25328451,0.00025,2]
[393349643,1762504251092,-1049.91,0.00025,2]
[393349644,1762504251102,-450.0,0.00025,2]
[393349645,1762504251111,-893.0,0.00025282,2]
[393349646,1762504251121,-1613.0,0.00025282,2]
[393349647,1762504251131,-500.0,0.00025288,2]
[393349648,1762504251140,-250.0,0.00025321,2]
[393349649,1762504251150,-437.64153578,0.0002544,2]
[393349650,1762504251160,-1049.91,0.000255,2]
[393349651,1762504251170,-19406.69,0.000255,7]
[393349652,1762504251180,-293.33,0.0002554,2]
[393349653,1762504251190,-181.09714739,0.00025868,2]
[393349654,1762504251200,-18088.70531115,0.00025879,2]
[393349655,1762504251210,-5066.95449349,0.000259,2]
[393349656,1762504251219,-593.38270156,0.0002599,2]
[393349657,1762504251229,-4469.63207177,0.00026,2]
[393349658,1762504251239,-21134.85870964,0.00026,2]
[393349659,1762504251248,-4138.65,0.00026,2]
[393349660,1762504251258,-213.84136667,0.00026,2]
[393349661,1762504251267,-160.96188225,0.00026,2]
[393349662,1762504251277,-1049.91,0.00026,30]
[393349663,1762504251287,-1000.0,0.00026078,2]
[393349664,1762504251296,-546.88431357,0.00026258,2]
[393349665,1762504251305,-27151.41005091,0.000264,2]
[393349666,1762504251315,-486.63339793,0.000264,2]
[393349667,1762504251325,-293.33,0.00026523,2]
[393349668,1762504251335,-1000.0,0.00026667,7]
[393349669,1762504251346,-727.06,0.00026676,2]
[393349670,1762504251355,-157.45979655,0.00026808,2]
[393349671,1762504251365,-500.0,0.00026833,2]
[393349672,1762504251375,-250.0,0.00027,2]
[393349673,1762504251385,-1021.08103789,0.00027,2]
[393349674,1762504251397,-530.0,0.00027,2]
[393349675,1762504251407,-164.0,0.00027,7]
[393349676,1762504251417,-198.0,0.00027,7]
[393349677,1762504251426,-313.0,0.00027,7]
[393349678,1762504251436,-168.0,0.00027,7]
[393349679,1762504251446,-500.0,0.00027,2]
[393349680,1762504251455,-460.4963854,0.00027101,2]
[393349681,1762504251464,-162.36187253,0.00027114,2]
[393349682,1762504251474,-5066.95449349,0.00027233,2]
[393349683,1762504251483,-19406.69,0.000273,7]
[393349684,1762504251493,-1459.0,0.000273,2]
[393349685,1762504251503,-150.0,0.00027369,2]
[393349686,1762504251512,-4060.01691369,0.0002739,2]
[393349687,1762504251522,-8020.4839602,0.0002739,2]
[393349688,1762504251537,-186.45372762,0.00027397,2]
[393349689,1762504251550,-300.0,0.00027397,2]
[393349690,1762504251563,-1171.1,0.00027397,2]
[393349691,1762504251572,-1500.0,0.00027397,16]
[393349692,1762504251581,-33109.67,0.00027397,2]
[393349693,1762504251591,-181.42,0.00027397,10]
[393349694,1762504251604,-451.54,0.000274,7]
[393349695,1762504251614,-2984.16,0.000274,2]
[393349696,1762504251623,-1301.35,0.000274,7]
[393349697,1762504251632,-367.07,0.00027438,2]
[393349698,1762504251643,-198.59020601,0.000275,2]
[393349699,1762504251653,-542.49785778,0.000275,2]
[393349700,1762504251662,-2000.0,0.000275,2]
[393349701,1762504251672,-2258.0,0.00027636,2]
[393349702,1762504251686,-313.0,0.00027671,14]
[393349703,1762504251695,-1804.19,0.00027671,30]
[393349704,1762504251706,-2296.03,0.00027671,2]
[393349705,1762504251721,-367.07,0.00027875,2]
[393349706,1762504251730,-282.09091403,0.000279,2]
[393349707,1762504251740,-216.7,0.0002794,7]
[393349708,1762504251749,-17044.0,0.00027973,2]
[393349709,1762504251759,-70427.84569204,0.00028,2]
[393349710,1762504251768,-249603.94000558,0.00028,2]
[393349711,1762504251778,-50223.83753897,0.00028,2]
[393349712,1762504251787,-160.0,0.00028,2]
[393349713,1762504251796,-283.29,0.00028,2]
[393349714,1762504251806,-444.49904951,0.00028278,2]
[393349715,1762504251815,-367.07,0.00028313,2]
[393349716,1762504251825,-300.0,0.00028531,7]
[393349717,1762504251835,-5066.95449349,0.00028567,2]
[393349718,1762504251845,-729.32759123,0.00028691,2]
[393349719,1762504251855,-13133.54834702,0.0002875,2]
[393349720,1762504251864,-165.0,0.00028767,14]
[393349721,1762504251874,-313.0,0.00028767,14]
[393349722,1762504251883,-152.0,0.0002878,3]
[393349723,1762504251893,-2984.16,0.000288,2]
[393349724,1762504251902,-16581.7065668,0.00028888,2]
[393349725,1762504251912,-1301.35,0.000289,7]
[393349726,1762504251921,-192.28,0.00028954,2]
[393349727,1762504251930,-1926.8076577,0.00029,2]
[393349728,1762504251939,-300.82617854,0.00029,2]
[393349729,1762504251949,-157.45979655,0.00029066,110]
[393349730,1762504251958,-152.0,0.00029287,4]
[393349731,1762504251968,-19406.69,0.000293,7]
[393349732,1762504251978,-546.88431357,0.00029344,2]
[393349733,1762504251988,-460.4963854,0.00029401,15]
[393349734,1762504251998,-451.54,0.000295,7]
[393349735,1762504252008,-592.47248963,0.0002964,2]
[393349736,1762504252017,-152.0,0.00029795,5]
[393349737,1762504252027,-159.0,0.000298,7]
[393349738,1762504252036,-77863.3873496,0.000299,2]
[393349739,1762504252045,-5066.95449349,0.000299,2]
[393349740,1762504252056,-301.15,0.00029984,2]
[393349741,1762504252065,-234.10235612,0.0002999,2]
[393349742,1762504252076,-454.96,0.0003,30]
[393349743,1762504252086,-5646.23629699,0.0003,2]
[393349744,1762504252095,-19611.96262248,0.0003,2]
[393349745,1762504252108,-2000.0,0.0003,14]
[393349746,1762504252118,-1793.05761065,0.0003,2]
[393349747,1762504252128,-4212.2243655,0.0003,2]
[393349748,1762504252137,-400.0,0.0003,20]
[393349749,1762504252148,-606.29532245,0.0003,2]
[393349750,1762504252158,-160.83416815,0.0003,2]
[393349751,1762504252168,-159.0,0.0003,10]
[393349752,1762504252178,-50221.895884,0.0003,5]
[393349753,1762504252188,-4655.83971353,0.0003,2]
[393349754,1762504252201,-830.75,0.00030042,2]
[393349755,1762504252212,-308.00801652,0.0003013,2]
[393349756,1762504252222,-1058.91028585,0.0003013,2]
[393349757,1762504252231,-182.47354773,0.0003013,30]
[393349758,1762504252241,-13666.68894269,0.0003013,2]
[393349759,1762504252251,-304.57056437,0.0003013,5]
[393349760,1762504252260,-625.43963357,0.0003013,2]
[393349761,1762504252269,-199.02899561,0.0003013,2]
[393349762,1762504252279,-1207.93903954,0.0003013,2]
[393349763,1762504252289,-7628.68334134,0.0003013,2]
[393349764,1762504252298,-162.54223701,0.0003013,20]
[393349765,1762504252308,-1012.29679257,0.0003013,7]
[393349766,1762504252319,-999.0,0.00030136,2]
[393349767,1762504252330,-698.68,0.00030137,2]
[393349768,1762504252339,-698.68,0.00030137,2]
[393349769,1762504252348,-698.68,0.00030137,2]
[393349770,1762504252358,-954.42,0.00030137,2]
[393349771,1762504252368,-477.21,0.00030137,2]
[393349772,1762504252377,-477.21,0.00030137,2]
[393349773,1762504252386,-953.97,0.00030137,2]
[393349774,1762504252397,-698.68,0.00030137,2]
[393349775,1762504252406,-1171.1,0.00030137,2]
[393349776,1762504252417,-175.48706705,0.00030137,120]
[393349777,1762504252427,-316.0,0.00030205,14]
[393349778,1762504252437,-2575.0,0.00030209,2]
[393349779,1762504252447,-698.68,0.0003021,2]
[393349780,1762504252456,-1405.75,0.0003021,2]
[393349781,1762504252466,-698.68,0.0003021,2]
[393349782,1762504252475,-2984.16,0.000303,2]
[393349783,1762504252485,-1000.0,0.000303,2]
[393349784,1762504252497,-152.0,0.00030303,6]
[393349785,1762504252506,-1301.35,0.000304,7]
[393349786,1762504252516,-3774.914,0.00030408,26]
[393349787,1762504252527,-151.571,0.00030408,26]
[393349788,1762504252537,-150.0,0.00030548,2]
[393349789,1762504252547,-150.0,0.00030548,2]
[393349790,1762504252556,-150.0,0.00030548,2]
[393349791,1762504252565,-150.0,0.00030548,2]
[393349792,1762504252575,-310.37,0.00030807,2]
[393349793,1762504252585,-353.88,0.00030807,2]
[393349794,1762504252595,-176.19,0.00030807,2]
[393349795,1762504252604,-176.94,0.00030807,2]
[393349796,1762504252617,-176.94,0.00030807,2]
[393349797,1762504252628,-1205.69,0.00030807,2]
[393349798,1762504252638,-1205.69,0.00030807,2]
[393349799,1762504252651,-1205.69,0.00030807,2]
[393349800,1762504252661,-152.0,0.0003081,7]
[393349801,1762504252671,-2576.22793422,0.0003084,2]
[393349802,1762504252682,-19406.69,0.000309,7]
[393349803,1762504252693,-216.7,0.00030911,30]
[393349804,1762504252702,-77928.82074358,0.0003095,2]
[393349805,1762504252712,-79741.70509726,0.00031,2]
[393349806,1762504252722,-698.68,0.00031096,2]
[393349807,1762504252732,-477.21,0.00031096,2]
[393349808,1762504252742,-698.68,0.00031096,2]
[393349809,1762504252751,-698.68,0.00031096,2]
[393349810,1762504252762,-477.21,0.00031096,2]
[393349811,1762504252772,-698.68,0.00031096,2]
[393349812,1762504252781,-477.21,0.00031096,2]
[393349813,1762504252791,-698.68,0.00031096,2]
[393349814,1762504252801,-477.21,0.00031096,2]
[393349815,1762504252810,-477.21,0.00031096,2]
[393349816,1762504252821,-698.68,0.00031096,2]
[393349817,1762504252831,-698.68,0.00031096,2]
[393349818,1762504252840,-477.21,0.00031096,2]
[393349819,1762504252850,-698.68,0.00031096,2]
[393349820,1762504252861,-477.21,0.00031096,2]
[393349821,1762504252871,-477.21,0.00031096,2]
[393349822,1762504252884,-698.68,0.00031096,2]
[393349823,1762504252894,-698.68,0.00031096,2]
[393349824,1762504252907,-569.9,0.00031096,2]
[393349825,1762504252917,-477.21,0.00031096,2]
[393349826,1762504252927,-477.21,0.00031096,2]
[393349827,1762504252937,-477.21,0.00031096,2]
[393349828,1762504252947,-477.21,0.00031096,2]
[393349829,1762504252957,-477.21,0.00031096,2]
[393349830,1762504252966,-477.21,0.00031096,2]
[393349831,1762504252976,-477.21,0.00031096,2]
[393349832,1762504252986,-477.21,0.00031096,2]
[393349833,1762504252996,-1000.0,0.000311,2]
[393349834,1762504253005,-2000.0,0.000312,2]
[393349835,1762504253015,-152.0,0.00031318,8]
[393349836,1762504253025,-415.8,0.0003137,2]
[393349837,1762504253035,-150.0,0.0003137,2]
[393349838,1762504253044,-309.96,0.0003137,2]
[393349839,1762504253055,-150.0,0.0003137,2]
[393349840,1762504253066,-150.0,0.0003137,2]
[393349841,1762504253076,-150.0,0.0003137,2]
[393349842,1762504253086,-150.0,0.0003137,2]
[393349843,1762504253096,-415.8,0.0003137,2]
[393349844,1762504253106,-758.70770392,0.0003143,4]
[393349845,1762504253116,-194.73229467,0.000315,2]
[393349846,1762504253126,-150.0,0.000315,2]
[393349847,1762504253136,-160.82227907,0.000315,120]
[393349848,1762504253148,-253.66552311,0.000315,2]
[393349849,1762504253158,-1205.69,0.00031629,2]
[393349850,1762504253168,-1205.69,0.00031629,2]
[393349851,1762504253178,-1205.69,0.00031629,2]
[393349852,1762504253188,-2297.39,0.00031629,2]
[393349853,1762504253201,-162.36187253,0.00031633,2]
[393349854,1762504253212,-30000.0,0.000317,2]
[393349855,1762504253222,-2984.16,0.000317,2]
[393349856,1762504253232,-460.4963854,0.00031701,15]
[393349857,1762504253242,-200.0,0.00031717,2]
[393349858,1762504253252,-200.0,0.00031718,2]
[393349859,1762504253262,-200.0,0.00031718,2]
[393349860,1762504253272,-200.0,0.00031718,2]
[393349861,1762504253282,-1301.35,0.000318,7]
[393349862,1762504253292,-5515.0,0.000318,3]
[393349863,1762504253303,-152.0,0.00031825,9]
[393349864,1762504253313,-3305.31337429,0.00031864,2]
[393349865,1762504253325,-451.54,0.000319,30]
[393349866,1762504253335,-150.0,0.000319,2]
[393349867,1762504253345,-203.84,0.000319,2]
[393349868,1762504253355,-2027.0,0.00031964,2]
[393349869,1762504253365,-159.0,0.00032,15]
[393349870,1762504253375,-1011.33361857,0.00032,7]
[393349871,1762504253542,-477.21,0.00032055,2]
[393349872,1762504253558,-477.21,0.00032055,2]
[393349873,1762504253567,-954.42,0.00032055,2]
[393349874,1762504253578,-415.8,0.00032192,2]
[393349875,1762504253588,-300.0,0.00032192,2]
[393349876,1762504253597,-150.0,0.00032192,2]
[393349877,1762504253609,-150.0,0.00032192,2]
[393349878,1762504253620,-150.0,0.00032192,2]
[393349879,1762504253630,-549.24,0.00032192,2]
[393349880,1762504253640,-150.0,0.00032192,2]
[393349881,1762504253650,-415.8,0.00032192,2]
[393349882,1762504253662,-176.94,0.00032192,2]
[393349883,1762504253671,-549.24,0.00032192,2]
[393349884,1762504253681,-150.0,0.00032192,2]
[393349885,1762504253693,-176.94,0.00032192,2]
[393349886,1762504253703,-549.24,0.00032192,2]
[393349887,1762504253714,-300.0,0.00032192,2]
[393349888,1762504253724,-184.38,0.00032192,2]
[393349889,1762504253734,-415.8,0.00032192,2]
[393349890,1762504253744,-303.97,0.00032192,2]
[393349891,1762504253754,-549.24,0.00032192,2]
[393349892,1762504253764,-206.79,0.00032192,2]
[393349893,1762504253774,-176.94,0.00032192,2]
[393349894,1762504253784,-549.24,0.00032192,2]
[393349895,1762504253794,-150.0,0.00032192,2]
[393349896,1762504253803,-415.8,0.00032192,2]
[393349897,1762504253813,-150.0,0.00032192,2]
[393349898,1762504253822,-150.0,0.00032192,2]
[393349899,1762504253840,-300.0,0.00032192,2]
[393349900,1762504253853,-415.8,0.00032192,2]
[393349901,1762504253863,-862.99,0.00032192,2]
[393349902,1762504253874,-150.0,0.00032192,2]
[393349903,1762504253883,-549.24,0.00032192,2]
[393349904,1762504253894,-415.8,0.00032192,2]
[393349905,1762504253904,-150.0,0.00032192,2]
[393349906,1762504253914,-549.24,0.00032192,2]
[393349907,1762504253924,-353.06,0.00032192,2]
[393349908,1762504253934,-150.0,0.00032192,2]
[393349909,1762504253943,-415.8,0.00032192,2]
[393349910,1762504253953,-549.24,0.00032192,2]
[393349911,1762504253963,-150.0,0.00032192,2]
[393349912,1762504253973,-831.6,0.00032192,2]
[393349913,1762504253983,-415.8,0.00032192,2]
[393349914,1762504253993,-415.8,0.00032192,2]
[393349915,1762504254003,-415.8,0.00032192,2]
[393349916,1762504254012,-831.43,0.00032192,2]
[393349917,1762504254022,-1098.48,0.00032192,2]
[393349918,1762504254032,-415.8,0.00032192,2]
[393349919,1762504254042,-549.24,0.00032192,2]
[393349920,1762504254052,-549.24,0.00032192,2]
[393349921,1762504254062,-549.24,0.00032192,2]
[393349922,1762504254072,-150.0,0.00032192,2]
[393349923,1762504254083,-549.24,0.00032192,2]
[393349924,1762504254094,-339.32,0.00032192,2]
[393349925,1762504254103,-150.0,0.00032192,2]
[393349926,1762504254114,-2410.6,0.00032192,2]
[393349927,1762504254124,-176.94,0.00032192,2]
[393349928,1762504254136,-549.24,0.00032192,2]
[393349929,1762504254147,-169.08,0.00032192,2]
[393349930,1762504254158,-150.0,0.00032192,2]
[393349931,1762504254169,-169.08,0.00032192,2]
[393349932,1762504254179,-176.94,0.00032192,2]
[393349933,1762504254190,-169.08,0.00032192,2]
[393349934,1762504254200,-150.0,0.00032192,2]
[393349935,1762504254213,-549.24,0.00032192,2]
[393349936,1762504254223,-313.0,0.00032219,14]
[393349937,1762504254234,-698.68,0.00032245,2]
[393349938,1762504254244,-698.68,0.00032245,2]
[393349939,1762504254254,-500.0,0.0003225,120]
[393349940,1762504254264,-152.0,0.00032333,10]
[393349941,1762504254274,-19406.69,0.000324,7]
[393349942,1762504254284,-546.88431357,0.0003243,2]